[Event "Grand Prix Romania 1st Stage 2024"]
[Site "Bucuresti"]
[Date "2024.03.24"]
[Round "7.11"]
[White "Ben Ari, Yannay"]
[Black "Gavrilescu, David"]
[Result "0-1"]
[ECO "A14"]
[WhiteElo "2434"]
[BlackElo "2524"]
[Annotator "TA"]
[PlyCount "104"]
[EventDate "2024.03.20"]
[EventType "swiss"]
[EventCountry "ROU"]
[SourceTitle "playchess.com"]
[Source "ChessBase"]
[SourceQuality "1"]
[TimeControl "900+5"]

{[%evp 27,104,0,37,35,60,10,15,10,79,81,70,0,0,-56,-55,-55,-56,-56,-69,-83,-41,-48,-53,-78,-35,-13,-1,-20,0,0,0,0,0,0,0,0,0,0,0,0,0,-39,-22,-32,-23,-13,0,-89,5,8,16,4,53,55,58,22,30,26,38,0,106,92,114,69,64,0,184,8,9,8,8,0,0,-29974,-29974,-29979,-29980,-29978,-29979]} 1. Nf3 {[%emt 0:00:02]} d5 {[%emt 0:00:01]} 2. g3 {[%emt 0:00:15]} Nf6 {[%emt 0:00:03]} 3. Bg2 {[%emt 0:00:02]} e6 {[%emt 0:00:03]} 4. O-O {[%emt 0:00:06]} Be7 {[%emt 0:00:02]} 5. c4 {[%emt 0:00:42]} O-O {[%emt 0:00:03]} 6. b3 {[%emt 0:00:01]} b6 {[%emt 0:00:04]} 7. Bb2 {[%emt 0:00:07]} Bb7 {[%emt 0:00:02]} 8. e3 {[%emt 0:00:17]} c5 {[%emt 0:00:02]} 9. Nc3 {[%emt 0:00:28]} Qc8 {[%emt 0:00:25] A14: English Opening: 1...e6 with b3 by White.} 10. Qe2 {[%emt 0:00:11]} Rd8 {[%emt 0:00:03]} 11. d3 {[%emt 0:02:02]} Nc6 {[%emt 0:00:21]} 12. Rfe1 {[%emt 0:01:31]} a6 $146 {[%emt 0:00:24]} ({Predecessor:} 12... Qc7 13. Rac1 dxc4 14. bxc4 Rac8 15. Nb5 Qb8 16. Red1 Qa8 17. a3 Ne8 18. h3 Bf6 {½-½ Savchenko,B (2550)-Artemiev,V (2701) RUS-ch Blitz 2022 (13)}) 13. cxd5 {[%emt 0:02:24]} Nxd5 {[%emt 0:00:27]} 14. Nxd5 {[%emt 0:00:44]} Rxd5 {[%emt 0:00:23]} 15. d4 {[%emt 0:00:28]} a5 {[%emt 0:02:07]} 16. e4 {[%emt 0:00:41]} (16. Nd2 $14) 16... Rd8 {[%emt 0:00:02]} 17. d5 {[%emt 0:01:19]} Ba6 {[%emt 0:00:32]} (17... exd5 $11 18. exd5 Rxd5) 18. Qe3 $16 {[%emt 0:01:39]} Nb4 {[%emt 0:00:04]} (18... exd5 $2 19. exd5 Rxd5 20. Nh4 $18 (20. Ne5 Rxe5 21. Bxe5 h6 $18)) 19. Ne5 {[%emt 0:00:04]} (19. Rad1 $14) 19... Bf6 $11 {[%emt 0:00:16]} 20. Bh3 {[%emt 0:00:36]} (20. Nc6 $11 Nxc6 (20... Bxb2 $2 21. Ne7+ Kh8 22. Nxc8 $18) 21. Bxf6 gxf6 22. dxc6) 20... Qc7 $15 {[%emt 0:00:36]} 21. Nxf7 $1 {[%emt 0:00:21]} Bxb2 {[%emt 0:00:46]} (21... Qxf7 22. Bxe6 $11 (22. dxe6 $2 Qf8 $19) (22. dxe6 $2 Qf8 $19)) 22. Bxe6 {[%emt 0:00:09]} (22. Nxd8 $2 Rxd8 23. Bxe6+ Kh8 $19) 22... Rf8 $1 {[%emt 0:00:25]} 23. d6 {[%emt 0:00:26]} Qxf7 $1 {[%emt 0:03:27]} 24. Bxf7+ {[%emt 0:00:01]} Rxf7 {[%emt 0:00:01]} 25. Rad1 {[%emt 0:00:04]} Nc2 {[%emt 0:00:02]} (25... Bd4 $5 26. Rxd4 Nc2 $19) 26. Qd2 {[%emt 0:01:03]} Nxe1 {[%emt 0:00:02]} 27. Qxe1 {[%emt 0:00:23]} Re8 {[%emt 0:01:07]} (27... Bc8 $5) 28. d7 $1 {[%emt 0:00:27]} Rd8 {[%emt 0:00:06]} 29. e5 $1 {[%emt 0:00:01]} Rfxd7 {[%emt 0:00:33]} (29... Rdxd7 $2 30. e6 Rde7 31. exf7+ $18) 30. Rxd7 {[%emt 0:00:01]} Rxd7 {[%emt 0:00:01]} 31. e6 {[%emt 0:00:11]} Re7 {[%emt 0:00:03]} 32. Qe4 {[%emt 0:00:02]} Bb7 {[%emt 0:00:14]} (32... Bc8 $5 33. Qa8 $8 Re8 $11) 33. Qf4 {[%emt 0:00:11]} h6 {[%emt 0:01:10]} (33... Rxe6 34. Qb8+ Kf7 35. Qxb7+ Ke8 36. g4 $18) 34. h4 {[%emt 0:00:46]} (34. Qd6 $5 Bf6 $8 35. Qxb6 $11) 34... Bf6 {[%emt 0:00:02]} (34... Rxe6 $2 {loses.} 35. Qb8+ Kh7 36. Qxb7 $18) 35. Qd6 {[%emt 0:00:05]} Be4 {[%emt 0:00:50]} 36. Qxb6 {[%emt 0:00:06]} Kh7 {[%emt 0:00:45]} (36... c4 {seems wilder.} 37. bxc4 Rb7 38. e7 Kf7) 37. h5 {[%emt 0:00:01]} (37. Kh2 $11 {remains equal.}) 37... Bf5 {[%emt 0:00:13]} (37... c4 $1 $17 {[%cal Rc4c3] ...c3 would now be deadly.} 38. Qe3 (38. bxc4 $2 {too greedy.} Rb7 $19) 38... Rxe6 39. bxc4 Kg8) 38. Qxc5 $11 {[%emt 0:00:02]} Bxe6 {[%emt 0:00:02]} 39. Qxa5 {[%emt 0:00:06]} Bg4 {[%emt 0:00:04]} (39... Rd7 $11 {was preferrable.}) 40. Qd5 $14 {[%emt 0:00:12]} Re5 {[%emt 0:00:11]} 41. Qd3+ {[%emt 0:00:05]} Kh8 {[%emt 0:00:05]} 42. Kg2 {[%emt 0:00:06]} Bxh5 {[%emt 0:00:15]} 43. a4 {[%emt 0:00:06]} Bf7 {[%emt 0:00:06]} (43... g5 $11 {keeps the balance.}) 44. b4 $16 {[%emt 0:00:05]} Bd5+ {[%emt 0:00:02]} 45. Kf1 {[%emt 0:00:03]} Be4 {[%emt 0:00:05]} 46. Qc3 {[%emt 0:00:06]} (46. Qc4 $14) 46... g5 $2 {[%emt 0:00:51] [#]} (46... Rd5 $11 47. Qe3 Rd1+ 48. Ke2 Rd4) 47. b5 $2 {[%emt 0:00:04]} ({White should try} 47. f4 $1 $18 {[%cal Rf4e5]} gxf4 48. gxf4) 47... Kg7 $1 $11 {[%emt 0:00:16]} 48. b6 {[%emt 0:00:03]} Re7 {[%emt 0:00:01]} 49. Qc4 {[%emt 0:00:08]} Bf3 {[%emt 0:00:08]} 50. a5 $2 {[%emt 0:00:05][%mdl 8192] [#]} (50. Qb3 $11 g4 51. Qd3) 50... Rd7 $1 {[%emt 0:00:05]} 51. Qc7 {[%emt 0:00:06]} Rxc7 {[%emt 0:00:04]} 52. bxc7 {[%emt 0:00:01]} Bb7 {[%emt 0:00:01]} 0-1

[Event "Grand Prix Romania 1st Stage 2024"]
[Site "Bucuresti"]
[Date "2024.03.24"]
[Round "7.12"]
[White "Lupulescu, Constantin"]
[Black "Baltag, Iulian"]
[Result "1-0"]
[ECO "D31"]
[WhiteElo "2579"]
[BlackElo "2412"]
[Annotator "TA"]
[PlyCount "77"]
[EventDate "2024.03.20"]
[EventType "swiss"]
[EventCountry "ROU"]
[SourceTitle "playchess.com"]
[Source "ChessBase"]
[SourceQuality "1"]
[TimeControl "900+5"]

{[%evp 9,77,34,31,42,30,23,33,23,28,20,24,18,28,12,29,18,20,21,27,14,19,0,0,18,8,6,18,11,14,14,18,27,22,0,0,-60,42,40,44,32,53,57,37,35,31,27,79,25,95,87,107,97,81,12,9,14,37,22,64,0,0,0,0,0,0,7,29996,950,29997,427]} 1. d4 {[%emt 0:00:01]} d5 {[%emt 0:00:01]} 2. c4 {[%emt 0:00:01]} e6 {[%emt 0:00:01]} 3. Nc3 {[%emt 0:00:01]} h6 {[%emt 0:00:01]} 4. Bf4 {[%emt 0:00:11]} Bd6 {[%emt 0:00:11]} 5. Bxd6 {[%emt 0:00:05]} Qxd6 {[%emt 0:00:03]} 6. e3 {[%emt 0:00:07]} Nf6 {[%emt 0:00:19]} 7. Rc1 {[%emt 0:00:38]} c6 {[%emt 0:00:08]} 8. Nf3 {[%emt 0:01:29][%cal Bg1f3,Bf3d2,Bd2b3,Bb3d4][%mdl 32] White is slightly better.} Nbd7 {[%emt 0:15:01]} 9. cxd5 {[%emt 0:13:17]} exd5 {[%emt 0:00:00]} 10. Bd3 {[%emt 0:00:00]} O-O {[%emt 0:00:00]} 11. O-O {[%emt 0:00:00]} Re8 {[%emt 0:00:00]} 12. Qc2 {[%emt 0:00:00]} Qe7 {[%emt 0:00:00]} 13. Nd2 {[%emt 0:00:00]} Nb6 {[%emt 0:00:00]} 14. Rce1 {[%emt 0:00:00]} Be6 {[%emt 0:00:00]} 15. f3 {[%emt 0:00:00]} c5 {[%emt 0:00:00]} 16. dxc5 {[%emt 0:00:00]} Qxc5 {[%emt 0:00:00]} 17. Nb3 {[%emt 0:00:00]} Qe7 {[%emt 0:00:00]} 18. Nd4 {[%emt 0:00:00]} Rac8 {[%emt 0:00:00]} 19. Rc1 {[%emt 0:00:00]} Nc4 {[%emt 0:00:00]} 20. Rfe1 {[%emt 0:00:00]} Qb4 {[%emt 0:00:00]} 21. Bxc4 {[%emt 0:00:00]} dxc4 {[%emt 0:00:00]} 22. e4 {[%emt 0:00:00]} (22. Red1 $11) 22... Qc5 {[%emt 0:00:00]} (22... Nd7 $15 23. Nce2 Ne5) 23. Qf2 $14 {[%emt 0:00:00]} Bd7 {[%emt 0:00:00]} 24. Rcd1 {[%emt 0:00:00]} a6 {[%emt 0:00:00]} 25. a3 {[%emt 0:00:00]} b5 {[%emt 0:00:00]} 26. Nc2 {[%emt 0:00:00]} Qc7 {[%emt 0:00:00]} 27. Nb4 {[%emt 0:00:00]} Re6 {[%emt 0:00:00]} (27... a5 $11 {remains equal.} 28. Nbd5 Nxd5 29. Nxd5 Qc6) 28. Qd4 {[%emt 0:00:00]} ({Better is} 28. f4 $16 {aiming for e5.} a5 29. Nbd5 Nxd5 30. Nxd5) 28... Be8 {[%emt 0:00:00]} (28... a5 $11 29. Ncd5 Nxd5 30. Nxd5 Qb8) 29. e5 $16 {[%emt 0:00:00]} Nd7 {[%emt 0:00:00][%cal Oc7c5] [#]} 30. f4 $1 {[%emt 0:00:00] Black must now prevent Ncd5.} Qc5 {[%emt 0:00:00]} 31. Qxc5 {[%emt 0:00:00]} ({White should try} 31. Ne4 $16 Qxd4+ 32. Rxd4) 31... Nxc5 $11 {[%emt 0:00:00]} 32. f5 $36 {[%emt 0:00:00][%mdl 2048] White is pushing.} Rb6 {[%emt 0:00:00]} 33. f6 {[%emt 0:00:04] Ncd5 would now be deadly.} Kf8 {[%emt 0:00:31]} 34. Re3 {[%emt 0:00:05] White is much more active.} (34. Nbd5 $14 Re6 35. fxg7+ Kxg7 36. Nf4) 34... gxf6 {[%emt 0:00:12]} 35. Ncd5 {[%emt 0:00:31]} Re6 {[%emt 0:00:19]} 36. Nxf6 {[%emt 0:00:02] Rg3 is the strong threat. A dynamic duo of knights.} Bc6 $1 {[%emt 0:00:35]} 37. Rg3 {[%emt 0:00:13] Intending Rg8+ and mate.} Bb7 $2 {[%emt 0:00:05][%mdl 8192] [#]} (37... Ke7 $11) 38. Rg8+ {[%emt 0:00:07]} Ke7 {[%emt 0:00:02]} 39. Nbd5+ {[%emt 0:00:03] Weighted Error Value: White=0.14 (very precise) /Black=0.33.  Loses game:     	---       	Black=1      Mistake:       	White=4     	Black=3      Inaccurate:     	---       	Black=2      OK:         	White=11    	Black=12     Best:        	White=3     	---        Strong:       	White=1     	Black=1} (39. Rd7+ $142 Nxd7 40. Nfd5+ Bxd5 41. Nxd5#) 1-0

[Event "Grand Prix Romania 1st Stage 2024"]
[Site "Bucuresti"]
[Date "2024.03.24"]
[Round "7.13"]
[White "Ghimpu, Samuel-Timotei"]
[Black "Moroni, Luca Jr"]
[Result "0-1"]
[ECO "B08"]
[WhiteElo "2467"]
[BlackElo "2580"]
[Annotator "TA"]
[PlyCount "138"]
[EventDate "2024.03.20"]
[EventType "swiss"]
[EventCountry "ROU"]
[SourceTitle "playchess.com"]
[Source "ChessBase"]
[SourceQuality "1"]
[TimeControl "900+5"]

{[%evp 57,138,66,98,86,109,109,121,121,117,127,106,36,102,96,106,65,43,43,38,0,0,14,0,0,68,68,71,79,90,93,169,74,98,0,0,0,0,0,0,0,0,0,0,0,0,0,0,0,0,0,0,-8,0,0,0,0,0,0,0,0,0,0,0,-8,0,-7,-8,-29961,-29962,-29977,-29978,-29978,-29979,-29979,-29980,-29980,-29981,-29982,-29983,-29983,-29984,-29984,-29985]} 1. e4 {[%emt 0:00:03]} g6 {[%emt 0:00:01]} 2. d4 {[%emt 0:00:40]} Bg7 {[%emt 0:00:01]} 3. Nf3 {[%emt 0:00:36]} d6 {[%emt 0:00:01]} 4. Nc3 {[%emt 0:00:25]} Nf6 {[%emt 0:00:03]} 5. Be2 {[%emt 0:00:12]} O-O {[%emt 0:00:02]} 6. O-O {[%emt 0:00:04]} a6 {[%emt 0:00:01]} 7. a4 {[%emt 0:00:20]} Nc6 {[%emt 0:00:02]} 8. h3 {[%emt 0:00:40]} e5 {[%emt 0:00:10]} 9. dxe5 {[%emt 0:00:08] B08: Pirc Defence: Classical System.} dxe5 {[%emt 0:00:01]} 10. Bc4 {[%emt 0:01:15]} Qe7 {[%emt 0:02:24]} 11. Nd5 {[%emt 0:01:06]} Nxd5 {[%emt 0:00:16]} 12. Bxd5 {[%emt 0:00:02]} Rd8 $146 {[%emt 0:00:47]} ({Predecessor:} 12... Nd4 13. c3 Ne6 14. Re1 Qf6 15. Bxe6 Qxe6 16. Qc2 Bd7 17. b3 Rfd8 18. Ba3 Bc6 {0-1 Tran,T (2459)-Wang,H (2717) Ho Chi Minh City HD Bank op-A 6th 2016 (8)}) 13. Qe2 {[%emt 0:03:16]} Nd4 {[%emt 0:00:01]} 14. Nxd4 {[%emt 0:00:11]} exd4 {[%emt 0:00:02]} 15. Re1 {[%emt 0:00:17]} c6 {[%emt 0:00:05]} 16. Bc4 {[%emt 0:00:09]} Be6 {[%emt 0:00:07]} 17. a5 {[%emt 0:00:29]} Qb4 {[%emt 0:00:36]} 18. Bxe6 {[%emt 0:00:22]} fxe6 {[%emt 0:00:02]} 19. Bd2 {[%emt 0:02:30]} Qb5 {[%emt 0:00:01]} 20. Qd3 {[%emt 0:00:53]} Rf8 {[%emt 0:01:19]} 21. Ra3 {[%emt 0:00:45]} c5 {[%emt 0:00:57]} 22. b3 {[%emt 0:01:16]} Rf7 {[%emt 0:01:04]} 23. Raa1 {[%emt 0:00:13]} Be5 {[%emt 0:01:26]} 24. Qc4 {[%emt 0:00:19]} Qxc4 {[%emt 0:01:00]} 25. bxc4 {[%emt 0:00:02]} d3 {[%emt 0:00:01]} 26. c3 {[%emt 0:00:07]} Rc8 {[%emt 0:00:47]} 27. Ra3 {[%emt 0:00:19]} Rc6 {[%emt 0:00:23]} 28. Rb1 {[%emt 0:00:10]} Bc7 {[%emt 0:00:41]} 29. f3 {[%emt 0:00:12]} Kf8 {[%emt 0:00:57]} 30. Kf1 {[%emt 0:00:01]} (30. Rxb7 $2 Bh2+ 31. Kxh2 Rxb7 $19) 30... Bd8 {[%emt 0:00:11]} 31. Be3 {[%emt 0:00:11]} h5 {[%emt 0:01:10]} 32. Ke1 {[%emt 0:00:04]} Ke8 {[%emt 0:00:44]} 33. Kd2 {[%emt 0:00:33]} Rd7 34. g4 {[%emt 0:00:00]} ({Better is} 34. e5 $16) 34... hxg4 {[%emt 0:00:14]} (34... e5 $14) 35. hxg4 $16 {[%emt 0:00:00]} Rh7 {[%emt 0:00:01]} 36. Bf4 {[%emt 0:00:06]} (36. Kxd3 $6 Rd6+ 37. Kc2 Rh2+ 38. Kb3 Rd3 39. Bxc5 Rxf3 $11) 36... Rh3 {[%emt 0:01:42]} 37. Rf1 {[%emt 0:00:04]} g5 {[%emt 0:00:20]} 38. Be5 {[%emt 0:00:02]} Bc7 {[%emt 0:00:14]} 39. Bxc7 {[%emt 0:00:05]} Rxc7 {[%emt 0:00:01]} 40. Kxd3 {[%emt 0:00:06]} Rh2 {[%emt 0:00:09]} ({Black should play} 40... Rf7 $11) 41. Ke3 $14 {[%emt 0:00:03]} Rd7 {[%emt 0:00:05]} 42. Rf2 {[%emt 0:00:02]} Rh1 {[%emt 0:00:04]} 43. Rb3 $1 {[%emt 0:00:08]} Kd8 {[%emt 0:00:13]} (43... Rc1 $16) 44. Rb6 {[%emt 0:00:08]} (44. Rd2 $1 $18 {[%cal Rd2d7]} Re1+ 45. Kf2 Rxd2+ 46. Kxe1) 44... Rc1 {[%emt 0:00:02]} 45. Rd2 {[%emt 0:00:05]} (45. Rxe6 $16 {Hoping for e5.} Rxc3+ 46. Ke2) 45... Rxc3+ $11 {[%emt 0:00:07]} 46. Ke2 Rxd2+ 47. Kxd2 {[%emt 0:00:01]} Rxf3 {[%emt 0:00:06]} 48. Rxb7 {[%emt 0:00:02]} Rf4 {[%emt 0:00:05]} 49. Ke3 {[%emt 0:00:11]} Rxg4 {[%emt 0:00:01]} 50. Rb6 {[%emt 0:00:01]} Ke7 {[%emt 0:00:04]} 51. Rc6 {[%emt 0:00:08]} Rg3+ {[%emt 0:00:03]} 52. Kf2 {[%emt 0:00:01]} Ra3 {[%emt 0:00:02]} 53. Rxc5 {[%emt 0:00:02]} Kf6 {[%emt 0:00:00]} 54. Kg2 {[%emt 0:00:10]} g4 {[%emt 0:00:12]} 55. Kf2 {[%emt 0:00:04]} e5 {[%emt 0:00:01]} 56. Rc6+ {[%emt 0:00:08]} Kg5 {[%emt 0:00:02]} 57. Rxa6 {[%emt 0:00:01]} Kf4 {[%emt 0:00:01]} 58. Rf6+ {[%emt 0:00:08]} Kxe4 {[%emt 0:00:01]} 59. a6 {[%emt 0:00:03]} Kd4 {[%emt 0:00:15]} 60. Rg6 {[%emt 0:00:01]} e4 {[%emt 0:00:13]} 61. Rxg4 {[%emt 0:00:16]} Ra2+ {[%emt 0:00:01]} (61... Rxa6 {simplifies} 62. Rg7 Ra2+ 63. Kg3 Kxc4 64. Kf4 Re2) 62. Ke1 $2 {[%emt 0:00:10][%mdl 8192] [#]} (62. Kf1 $11) 62... Kd3 $1 {[%emt 0:00:01]} (62... Rxa6 63. Rg3 $11) 63. Rg7 {[%emt 0:00:06] [#]} Ra1+ $1 {[%emt 0:00:19]} (63... Kxc4 64. a7 $11) 64. Kf2 {[%emt 0:00:01]} e3+ {[%emt 0:00:01]} ({Worse is} 64... Kxc4 65. Rc7+ Kb5 66. Rb7+ Kc6 67. Ra7 $11) 65. Kf3 {[%emt 0:00:08]} Rf1+ {[%emt 0:00:01]} ({And not} 65... Kxc4 66. a7 $11 (66. Kxe3 Rxa6 67. Kd2 Rd6+ 68. Kc2 Kd5 $11)) 66. Kg2 {[%emt 0:00:02]} e2 {[%emt 0:00:02]} 67. Re7 {[%emt 0:00:10]} e1=Q {[%emt 0:00:06]} 68. Rxe1 {[%emt 0:00:03]} Rxe1 {[%emt 0:00:01]} 69. c5 {[%emt 0:00:00]} Ra1 {[%emt 0:00:04]} 0-1

[Event "Grand Prix Romania 1st Stage 2024"]
[Site "Bucuresti"]
[Date "2024.03.24"]
[Round "7.15"]
[White "Zajic, Milan"]
[Black "Banzea, Alexandru-Bogdan"]
[Result "1-0"]
[ECO "B06"]
[WhiteElo "2436"]
[BlackElo "2394"]
[Annotator "TA"]
[PlyCount "91"]
[EventDate "2024.03.20"]
[EventType "swiss"]
[EventCountry "ROU"]
[SourceTitle "playchess.com"]
[Source "ChessBase"]
[SourceQuality "1"]
[TimeControl "900+5"]

{[%evp 9,91,22,27,18,28,20,35,23,40,32,21,17,32,35,26,8,16,17,26,30,31,16,34,35,33,56,37,37,83,74,67,66,75,65,76,79,120,114,120,141,121,33,45,20,21,28,48,6,13,16,166,171,184,163,180,175,154,201,196,123,327,327,660,637,743,747,985,984,926,848,468,528,1439,1458,3346,3242,6111,5908,29966,29967,29987,29985,29983,29975]} 1. e4 {[%emt 0:00:01]} c5 {[%emt 0:00:09]} 2. Nf3 {[%emt 0:00:02]} g6 {[%emt 0:00:02]} 3. c3 {[%emt 0:00:02]} d5 {[%emt 0:00:06]} 4. exd5 {[%emt 0:00:05]} Qxd5 {[%emt 0:00:05]} 5. d4 {[%emt 0:00:02]} Bg7 {[%emt 0:00:08]} 6. Nbd2 {[%emt 0:00:05] Strongly threatening Bc4.} Nf6 {[%emt 0:02:12]} 7. Bc4 {[%emt 0:00:02]} Qd6 {[%emt 0:00:08]} 8. O-O {[%emt 0:00:25] White is slightly better.} O-O {[%emt 0:00:13]} 9. Re1 {[%emt 0:01:04]} Nc6 {[%emt 0:00:53]} 10. dxc5 {[%emt 0:00:16]} Qxc5 {[%emt 0:00:13]} 11. Qe2 {[%emt 0:00:14]} b6 {[%emt 0:01:19]} 12. Nb3 {[%emt 0:01:11]} Qd6 {[%emt 0:00:15]} 13. Bg5 {[%emt 0:00:21]} Bb7 {[%emt 0:00:12]} 14. Rad1 {[%emt 0:00:56]} Qc7 {[%emt 0:00:02]} 15. Nbd4 {[%emt 0:00:44]} Nxd4 {[%emt 0:03:31]} 16. Rxd4 {[%emt 0:01:17]} e6 {[%emt 0:02:14]} 17. Bf4 {[%emt 0:00:58]} Qc8 {[%emt 0:00:08] Black is weak on the dark squares} 18. Be5 {[%emt 0:01:07]} Nd7 {[%emt 0:01:32]} (18... Bxf3 $14 19. Qxf3 Nd7 20. Bxg7 Kxg7) 19. Bxg7 $16 {[%emt 0:00:16]} Kxg7 {[%emt 0:00:07]} 20. Ne5 {[%emt 0:01:40]} Nxe5 {[%emt 0:00:17]} 21. Qxe5+ {[%emt 0:00:02]} Kg8 {[%emt 0:00:02]} 22. h4 {[%emt 0:00:11] Black must now prevent h5.} Qc6 {[%emt 0:00:58][%csl Gb7][%cal Rc6g2] [#]} 23. f3 {[%emt 0:00:28] aiming for h5. Active counter play!} Qc5 {[%emt 0:00:46]} 24. Qxc5 {[%emt 0:01:02]} bxc5 {[%emt 0:00:02]} 25. Rd6 {[%emt 0:00:44]} ({White should play} 25. Rd7 $16 Rab8 26. Re5) 25... Rfc8 {[%emt 0:00:02]} 26. Kf2 {[%emt 0:00:47]} Kf8 {[%emt 0:00:01]} 27. Red1 {[%emt 0:00:25]} Bc6 {[%emt 0:00:42]} 28. h5 {[%emt 0:01:17]} Ke7 {[%emt 0:00:11]} 29. h6 {[%emt 0:00:27]} Rd8 {[%emt 0:00:44]} (29... a5 $11 {and Black has nothing to worry.}) 30. Rxd8 $18 {[%emt 0:00:36]} Rxd8 {[%emt 0:00:01]} 31. Rxd8 Kxd8 {[%emt 0:00:02][%mdl 4096] Endgame. KB-KB} 32. b4 {[%emt 0:00:10]} cxb4 {[%emt 0:00:02]} 33. cxb4 {[%emt 0:00:01][%cal Bc3b4,Bb4b5][%mdl 32]} Ke7 {[%emt 0:00:05]} 34. f4 {[%emt 0:00:10]} (34. Ke3 $18) 34... Kf6 $2 {[%emt 0:00:08]} (34... Kd6 $16 {keeps fighting.}) 35. b5 {[%emt 0:00:19]} Bb7 {[%emt 0:00:09]} (35... Bd7 36. a4 Ke7) 36. g3 {[%emt 0:00:23]} Kf5 {[%emt 0:00:12]} 37. Bd3+ {[%emt 0:00:07]} Kg4 {[%emt 0:00:06]} 38. Be2+ {[%emt 0:00:07]} Kf5 {[%emt 0:00:02]} 39. Bf3 {[%emt 0:00:10]} Bc8 {[%emt 0:00:12]} 40. a4 {[%emt 0:00:01][%cal Ba2a4,Ba4a5,Ba5a6][%mdl 32] a5 is the strong threat.} g5 {[%emt 0:00:05]} 41. Ke3 {[%emt 0:00:05]} gxf4+ {[%emt 0:00:02]} 42. gxf4 {[%emt 0:00:01]} Kg6 {[%emt 0:00:01]} 43. a5 {[%emt 0:00:03]} Kxh6 {[%emt 0:00:02]} 44. a6 {[%emt 0:00:04] White mates.} Kg6 {[%emt 0:00:06]} 45. Bb7 {[%emt 0:00:02]} Bd7 {[%emt 0:00:01] [#]} 46. b6 $1 {[%emt 0:00:01][%mdl 512] Weighted Error Value: White=0.09 (flawless) /Black=0.50.  Loses game:     	---       	Black=1      Mistake:       	White=2     	Black=3      Inaccurate:     	White=1     	Black=2      OK:         	White=13    	Black=11     Best:        	White=4     	Black=1} 1-0

[Event "Grand Prix Romania 1st Stage 2024"]
[Site "Bucuresti"]
[Date "2024.03.24"]
[Round "7.16"]
[White "Maximov, Oleg"]
[Black "Mikhalevski, Victor"]
[Result "0-1"]
[ECO "C26"]
[WhiteElo "2185"]
[BlackElo "2514"]
[Annotator "TA"]
[PlyCount "60"]
[EventDate "2024.03.20"]
[EventType "swiss"]
[EventCountry "ROU"]
[SourceTitle "playchess.com"]
[Source "ChessBase"]
[SourceQuality "1"]
[TimeControl "900+5"]

{[%evp 11,60,4,30,19,20,11,13,13,22,-29,-23,-25,-15,-35,-41,-71,-83,-75,-72,-122,-70,-101,-62,-136,-137,-124,-126,-117,-119,-143,-136,-141,-137,-162,-175,-231,-135,-125,-110,-144,-143,-139,-131,-189,-183,-198,-132,-312,-275,-535,-350]} 1. e4 {[%emt 0:00:03]} e5 {[%emt 0:00:01]} 2. Nc3 {[%emt 0:00:03]} Nf6 {[%emt 0:00:07]} 3. g3 {[%emt 0:00:05]} Bc5 {[%emt 0:00:24]} 4. Bg2 {[%emt 0:00:04]} Nc6 {[%emt 0:00:03]} 5. d3 {[%emt 0:00:14]} d6 {[%emt 0:00:02]} 6. Na4 {[%emt 0:00:17]} Bg4 {[%emt 0:00:43]} 7. f3 {[%emt 0:00:12]} Be6 {[%emt 0:00:04]} 8. Nxc5 {[%emt 0:00:10]} dxc5 {[%emt 0:00:02]} 9. b3 {[%emt 0:00:04] The position is equal.} Nd7 {[%emt 0:00:07]} 10. f4 {[%emt 0:03:03]} (10. Bb2 $142) 10... exf4 $11 {[%emt 0:00:28]} 11. Bxf4 {[%emt 0:00:03]} Nde5 {[%emt 0:00:04]} 12. Nf3 {[%emt 0:00:37]} Bg4 {[%emt 0:01:15]} 13. h3 {[%emt 0:00:01] Dodges h5} Bxf3 {[%emt 0:00:21]} 14. Bxf3 {[%emt 0:00:02]} Qd4 {[%emt 0:01:08] ...Nxf3+ would now be deadly.} 15. Rc1 {[%emt 0:00:44]} (15. Bg2 $142) 15... O-O-O {[%emt 0:00:14]} (15... Nb4 $17 16. Rf1 Nxa2) 16. Qe2 {[%emt 0:00:27]} Qc3+ {[%emt 0:01:17]} 17. Bd2 {[%emt 0:01:01] [#]} (17. Kf2 $15) 17... Qb2 $1 $17 {[%emt 0:00:21][%cal Oc6d4]} 18. O-O {[%emt 0:00:39]} Nd4 {[%emt 0:00:15] A dynamic duo of knights.} 19. Bg4+ {[%emt 0:00:02]} Kb8 {[%emt 0:00:09]} 20. Qd1 {[%emt 0:01:10]} Qxa2 {[%emt 0:00:45] Black is much more active.} 21. Bf4 {[%emt 0:03:00]} f6 {[%emt 0:00:38]} 22. Bxe5 {[%emt 0:00:38]} fxe5 {[%emt 0:00:01]} 23. c3 {[%emt 0:00:43]} (23. Rf2 {might work better.} Rhf8 24. Ra1) 23... Nc6 {[%emt 0:00:52]} (23... Nxb3 $19 24. Be6 Rxd3 25. Qxd3 Nxc1) 24. Be6 {[%emt 0:00:18]} Rhf8 {[%emt 0:01:00]} 25. Rc2 {[%emt 0:01:03]} Rxf1+ {[%emt 0:00:53]} 26. Kxf1 {[%emt 0:00:02]} Qa6 {[%emt 0:00:05]} 27. Bc4 {[%emt 0:00:25] [#]} (27. Bd5 $17) 27... b5 $1 $19 {[%emt 0:00:20]} 28. Bd5 {[%emt 0:00:02]} Ne7 {[%emt 0:00:03]} 29. Qh5 $2 {[%emt 0:00:29]} (29. c4 $17) 29... Qd6 {[%emt 0:00:44]} 30. Ra2 $2 {[%emt 0:01:03]} (30. c4) 30... c6 {[%emt 0:00:59] Weighted Error Value: White=0.44/Black=0.15 (very precise) .  Loses game:     	White=1     	---        Mistake:       	White=6     	Black=2      Inaccurate:     	White=3     	Black=2      OK:         	White=5     	Black=10     Best:        	---       	Black=3      Strong:       	---       	Black=1} 0-1